fUSD/lending_fUSD_20260123
["ID","MTS","AMOUNT","RATE_DAILY","PERIOD"]
[403118881,1769177431889,-3753.07156661,0.00013939,2]
[403118882,1769177431900,-7477.9414305,0.00013939,2]
[403118883,1769177431910,-1487.95536,0.00013939,2]
[403118884,1769177431922,-5879.39187,0.00013939,2]
[403118885,1769177431932,-510.0,0.00013939,2]
[403118886,1769177431943,-1650.0,0.00013939,2]
[403118893,1769177437903,-28272.52426398,0.00013939,2]
[403118929,1769177439954,-259.7270366,0.00013939,2]
[403118930,1769177439966,-2666.39463978,0.00013939,2]
[403118931,1769177439977,-373.93743232,0.00013939,2]
[403118932,1769177439999,-55300.0,0.00013939,2]
[403118933,1769177440025,-19149.37087493,0.00013939,2]
[403118934,1769177440044,-366.77809616,0.00013939,2]
[403118935,1769177440185,-1023.78057505,0.00013939,2]
[403118969,1769177442862,-1200.0,0.00013939,2]
[403118970,1769177442927,-289.16,0.00013939,2]
[403118971,1769177443032,-1613.6,0.00013939,2]
[403118985,1769177445730,-22633.40453914,0.00013939,2]
[403118986,1769177445845,-871.26956706,0.00013939,2]
[403119076,1769177447485,-3359.99999999,0.00013939,2]
[403119077,1769177461475,300.0,0.00013938,2]
[403119081,1769177487643,1442.6634655,0.00013938,2]
[403119082,1769177492885,935.137,0.0001366,2]
[403119085,1769177508448,579.01313037,0.00013938,2]
[403119086,1769177528564,503.47765879,0.00013938,2]
[403119087,1769177528954,500.0,0.00013938,2]
[403119088,1769177529451,500.0,0.00013938,2]
[403119089,1769177529499,316.77695198,0.00013938,2]
[403119090,1769177530609,500.0,0.00013938,2]
[403119091,1769177530653,500.0,0.00013938,2]
[403119092,1769177530696,500.0,0.00013938,2]
[403119093,1769177530758,500.0,0.00013938,2]
[403119094,1769177530803,243.68969409,0.00013938,2]
[403119095,1769177530849,500.0,0.00013938,2]
[403119096,1769177530892,500.0,0.00013938,2]
[403119097,1769177530945,500.0,0.00013938,2]
[403119098,1769177530992,219.93251496,0.00013938,2]
[403119099,1769177531041,500.0,0.00013938,2]
[403119100,1769177531086,459.31958431,0.00013938,2]
[403119101,1769177531111,40.68041569,0.00013938,2]
[403119102,1769177531152,500.0,0.00013938,2]
[403119103,1769177531200,500.0,0.00013938,2]
[403119104,1769177531251,500.0,0.00013938,2]
[403119105,1769177581337,300.0,0.00013938,2]
[403119106,1769177601757,1148.0,0.00013938,2]
[403119107,1769177641647,225.0,0.00013938,2]
[403119108,1769177645246,10000.0,0.000165,7]
[403119109,1769177677327,20000.0,0.00015,3]
[403119110,1769177697576,624.70246055,0.0001393,2]
[403119111,1769177701573,1200.0,0.00013938,2]
[403119112,1769177706391,-350.0,0.00019178,30]
[403119113,1769177723693,10000.0,0.000139,3]
[403119114,1769177751594,4961.62712376,0.000139,2]
[403119115,1769177751638,5038.37287624,0.000139,2]
[403119116,1769177761843,422.52308733,0.00013884,2]
[403119117,1769177786081,4539.11403643,0.000139,2]
[403119118,1769177786106,10000.01,0.000139,2]
[403119119,1769177786131,10000.01,0.000139,2]
[403119120,1769177786156,10000.01,0.000139,2]
[403119121,1769177786180,10000.01,0.000139,2]
[403119122,1769177786204,10000.01,0.000139,2]
[403119123,1769177786230,10000.01,0.000139,2]
[403119124,1769177786253,10000.01,0.000139,2]
[403119125,1769177786277,10000.01,0.000139,2]
[403119126,1769177786300,953.80498561,0.000139,2]
[403119127,1769177821544,300.0,0.00013938,2]
[403119128,1769177831191,500.0,0.0001393,2]
[403119129,1769177831305,151.0,0.0001393,2]
[403119130,1769177831687,500.0,0.0001393,2]
[403119131,1769177831788,500.0,0.0001393,2]
[403119132,1769177831879,151.0,0.0001393,2]
[403119133,1769177832289,500.0,0.0001393,2]
[403119134,1769177832415,500.0,0.0001393,2]
[403119135,1769177832485,151.0,0.0001393,2]
[403119136,1769177832895,500.0,0.0001393,2]
[403119137,1769177833007,500.0,0.0001393,2]
[403119138,1769177833082,151.0,0.0001393,2]
[403119139,1769177833483,500.0,0.0001393,2]
[403119140,1769177833625,500.0,0.0001393,2]
[403119141,1769177833705,151.0,0.0001393,2]
[403119142,1769177834174,500.0,0.0001393,2]
[403119143,1769177834219,500.0,0.0001393,2]
[403119144,1769177834386,151.0,0.0001393,2]
[403119145,1769177834764,500.0,0.0001393,2]
[403119146,1769177834816,500.0,0.0001393,2]
[403119147,1769177834942,151.0,0.0001393,2]
[403119148,1769177835354,500.0,0.0001393,2]
[403119149,1769177835404,151.0,0.0001393,2]
[403119150,1769177835454,500.0,0.0001393,2]
[403119151,1769177835556,38.20501439,0.0001393,2]
[403119152,1769177835580,112.79498561,0.0001393,2]
[403119153,1769177835994,151.0,0.0001393,2]
[403119154,1769177836078,554.46818717,0.0001393,2]
[403119155,1769177836163,151.0,0.0001393,2]
[403119156,1769177836635,151.0,0.0001393,2]
[403119157,1769177836756,151.0,0.0001393,2]
[403119158,1769177837752,151.0,0.0001393,2]
[403119159,1769177837814,151.0,0.0001393,2]
[403119160,1769177837991,151.0,0.0001393,2]
[403119161,1769177838539,151.0,0.0001393,2]
[403119162,1769177839162,151.0,0.0001393,2]
[403119163,1769177839329,200.0,0.0001393,2]
[403119165,1769177839754,151.0,0.0001393,2]
[403119166,1769177840356,151.0,0.0001393,2]
[403119167,1769177840981,196.73716484,0.0001393,2]
[403119169,1769177846311,500.0,0.0001393,2]
[403119170,1769177847500,199.44610928,0.0001393,2]
[403119171,1769177871991,1000.0,0.00013839,2]
[403119172,1769177882643,150.0,0.00013938,2]
[403119173,1769177882796,300.0,0.00013938,2]
[403119174,1769177900689,1200.0,0.00013938,2]
[403119175,1769177902510,500.0,0.00013938,2]
[403119176,1769177902568,500.0,0.00013938,2]
[403119177,1769177902612,500.0,0.00013938,2]
[403119178,1769177902655,500.0,0.00013938,2]
[403119179,1769177902694,500.0,0.00013938,2]
[403119180,1769177902738,500.0,0.00013938,2]
[403119181,1769177902779,500.0,0.00013938,2]
[403119182,1769177902820,425.5635531,0.00013938,2]
[403119183,1769177902847,74.4364469,0.00013938,2]
[403119184,1769177902907,500.0,0.00013938,2]
[403119185,1769177902948,500.0,0.00013938,2]
[403119186,1769177902987,500.0,0.00013938,2]
[403119187,1769177903031,500.0,0.00013938,2]
[403119188,1769177903072,500.0,0.00013938,2]
[403119189,1769177903113,500.0,0.00013938,2]
[403119190,1769177903156,500.0,0.00013938,2]
[403119191,1769177903213,500.0,0.00013938,2]
[403119192,1769177903349,500.0,0.00013938,2]
[403119193,1769177903395,500.0,0.00013938,2]
[403119194,1769177903450,500.0,0.00013938,2]
[403119195,1769177903494,500.0,0.00013938,2]
[403119196,1769177903535,551.19683021,0.00013938,2]
[403119197,1769177903580,500.0,0.00013938,2]
[403119198,1769177903625,500.0,0.00013938,2]
[403119199,1769177903666,500.0,0.00013938,2]
[403119200,1769177903717,500.0,0.00013938,2]
[403119201,1769177903760,500.0,0.00013938,2]
[403119202,1769177903798,500.0,0.00013938,2]
[403119203,1769177903841,374.37672289,0.00013938,2]
[403119204,1769177903866,125.62327711,0.00013938,2]
[403119205,1769177903934,500.0,0.00013938,2]
[403119206,1769177903980,500.0,0.00013938,2]
[403119208,1769177914449,360.63554684,0.00013839,2]
[403119209,1769177932545,500.0,0.00013938,2]
[403119210,1769177932599,500.0,0.00013938,2]
[403119211,1769177932667,500.0,0.00013938,2]
[403119212,1769177932710,500.0,0.00013938,2]
[403119213,1769177943450,300.0,0.00013938,2]
[403119216,1769177985050,546.61465299,0.00013839,2]
[403119217,1769177992070,152.13538667,0.00013839,2]
[403119218,1769178001440,2579.20242863,0.00013839,2]
[403119219,1769178001534,1200.0,0.00013938,2]
[403119220,1769178004618,1735.79870776,0.00013929,2]
[403119221,1769178004645,52.74129224,0.00013929,2]
[403119222,1769178004823,1788.54,0.00013929,2]
[403119223,1769178028823,405.30919126,0.00013938,2]
[403119224,1769178040676,246.65916833,0.00013938,2]
[403119227,1769178061348,300.0,0.00013938,2]
[403119228,1769178062118,150.0,0.00013938,2]
[403119229,1769178072538,500.0,0.00013938,2]
[403119230,1769178072789,500.0,0.00013938,2]
[403119232,1769178092995,748.11,0.0001366,2]
[403119233,1769178093052,175.03837568,0.0001366,2]
[403119234,1769178095176,282.38,0.00015938,7]
[403119235,1769178129562,500.0,0.00013938,2]
[403119236,1769178129608,341.11239738,0.00013938,2]
[403119237,1769178130982,151.0,0.0001393,2]
[403119238,1769178131655,151.0,0.0001393,2]
[403119239,1769178132315,151.0,0.0001393,2]
[403119240,1769178132907,151.0,0.0001393,2]
[403119241,1769178133634,151.0,0.0001393,2]
[403119242,1769178134214,151.0,0.0001393,2]
[403119243,1769178134950,151.0,0.0001393,2]
[403119244,1769178135551,151.0,0.0001393,2]
[403119245,1769178136157,151.0,0.0001393,2]
[403119246,1769178136774,151.0,0.0001393,2]
[403119247,1769178137377,169.70111945,0.0001393,2]
[403119248,1769178261155,500.0,0.00013938,2]
[403119249,1769178261286,500.0,0.00013938,2]
[403119250,1769178261385,500.0,0.00013938,2]
[403119251,1769178261473,165.62174777,0.00013938,2]
[403119252,1769178271020,478.28782134,0.00013839,2]
[403119253,1769178272496,165.62174776,0.00013938,2]
[403119262,1769178340949,171.48883397,0.00013839,2]
[403119263,1769178363138,4075.02795665,0.00011,2]
[403119264,1769178363216,362.58419813,0.00011,2]
[403119265,1769178367015,500.0,0.00013938,2]
[403119266,1769178367254,502.09877135,0.00013938,2]
[403119270,1769178369696,500.0,0.00013938,2]
[403119272,1769178369942,500.0,0.00013938,2]
[403119277,1769178391638,6350.17,0.00013099,2]
[403119278,1769178393277,509.79415361,0.00013938,2]
[403119279,1769178413115,-157.52155638,0.00013939,2]
[403119280,1769178429258,205.0,9.8e-05,2]
[403119281,1769178433294,259.90891829,0.000101,2]
[403119282,1769178438153,500.0,0.00013938,2]
[403119283,1769178438400,500.0,0.00013938,2]
[403119291,1769178458894,10000.01,0.00013839,2]
[403119292,1769178459028,10000.01,0.00013839,2]
[403119293,1769178459099,10000.01,0.00013839,2]
[403119294,1769178459172,10000.01,0.00013839,2]
[403119295,1769178459248,10000.01,0.00013839,2]
[403119296,1769178459320,10000.01,0.00013839,2]
[403119297,1769178459393,10000.01,0.00013839,2]
[403119298,1769178459461,10000.01,0.00013839,2]
[403119299,1769178459530,10000.01,0.00013839,2]
[403119303,1769178506870,351.67469,0.00013769,2]
[403119304,1769178511633,2338.37148366,0.00013739,2]
[403119313,1769178559616,151.0,0.00013836,2]
[403119317,1769178601683,300.0,0.00013838,2]
[403119318,1769178601760,1200.0,0.00013838,2]
[403119319,1769178602116,150.0,0.00013838,2]
[403119328,1769178606703,300.0,0.00013838,2]
[403119338,1769178632045,-745.87552962,0.00013839,2]
[403119339,1769178632161,-439.31811681,0.00013839,2]
[403119340,1769178632173,-1705.05393468,0.00013839,2]
[403119359,1769178635903,543.35921339,0.00013838,2]
[403119360,1769178636008,299.86726384,0.00013838,2]
[403119361,1769178636096,190.49224051,0.00013838,2]
[403119366,1769178638035,-7276.71708627,0.00013839,2]
[403119367,1769178638048,-493835.62822986,0.00013839,2]
[403119368,1769178638104,-502.02195363,0.00013839,2]
[403119516,1769178639987,-256.52944339,0.00013839,2]
[403119531,1769178640113,-655.28295906,0.00013839,2]
[403119844,1769178643068,-17.50239518,0.00013839,2]
[403119874,1769178643349,-404565.9803515,0.00013839,2]
[403119876,1769178643359,-1094.2169,0.00013839,2]
[403119878,1769178643368,-500.0,0.00013839,2]
[403119880,1769178643377,-300.0,0.00013839,2]
[403119882,1769178643387,-300.0,0.00013899,2]
[403119884,1769178643396,-300.0,0.00013899,2]
[403119886,1769178643406,-500.0,0.00013938,2]
[403119888,1769178643415,-500.0,0.00013938,2]
[403119889,1769178643424,-500.0,0.00013938,2]
[403119891,1769178643433,-169.346534,0.00013939,2]
[403119893,1769178643444,-169.346534,0.00013939,2]
[403119895,1769178643453,-169.346534,0.00013939,2]
[403119896,1769178643462,-310.74773364,0.00013939,2]
[403119897,1769178643473,-168.47194484,0.0001394,2]
[403119898,1769178643482,-2338.37148358,0.00014201,2]
[403119899,1769178643491,-171.48883397,0.0001429,2]
[403119900,1769178643500,-478.28782133,0.00014419,2]
[403119901,1769178643509,-2338.37148358,0.00014664,2]
[403119902,1769178643518,-500.0,0.00014685,2]
[403119903,1769178643527,-171.48883397,0.00014741,2]
[403119904,1769178643536,-150.0,0.00014958,2]
[403119905,1769178643545,-478.28782133,0.00014999,2]
[403119906,1769178643555,-2338.37148358,0.00015126,2]
[403119907,1769178643564,-171.48883397,0.00015193,2]
[403119908,1769178643580,-1200.0,0.00015221,2]
[403119909,1769178643591,-602.39197553,0.00015222,2]
[403119910,1769178643601,-250.0,0.00015222,2]
[403119911,1769178643610,-300.0,0.00015222,2]
[403119912,1769178643619,-250.0,0.00015332,2]
[403119914,1769178643629,-166.66,0.00015356,2]
[403119916,1769178643638,-166.26,0.00015464,2]
[403119918,1769178643647,-478.28782133,0.00015579,2]
[403119920,1769178643657,-2338.37148358,0.00015588,2]
[403119922,1769178643666,-171.48883397,0.00015644,2]
[403119924,1769178643675,-166.66,0.00015679,2]
[403119926,1769178643685,-399.11,0.00015719,2]
[403119929,1769178643694,-150.0,0.00015759,2]
[403119931,1769178643704,-166.66,0.00015954,2]
[403119933,1769178643714,-166.66,0.00016002,2]
[403119935,1769178643725,-2338.37148358,0.00016051,2]
[403119937,1769178643734,-277.16,0.00016089,2]
[403119939,1769178643743,-171.48883397,0.00016095,2]
[403119941,1769178643752,-277.16,0.00016131,2]
[403119943,1769178643762,-162.24,0.00016134,2]
[403119945,1769178643773,-379.24,0.00016154,2]
[403119947,1769178643784,-478.28782133,0.0001616,2]
[403119949,1769178643794,-1000.0,0.00016164,2]
[403119950,1769178643804,-277.16,0.00016173,2]
[403119952,1769178643814,-500.0,0.00016216,2]
[403119954,1769178643823,-277.16,0.00016216,2]
[403119956,1769178643834,-277.16,0.00016258,2]
[403119958,1769178643846,-502.0,0.00016274,2]
[403119960,1769178643856,-277.16,0.000163,2]
[403119962,1769178643866,-166.66,0.00016326,2]
[403119964,1769178643876,-151.0,0.00016334,2]
[403119966,1769178643885,-151.0,0.00016334,2]
[403119968,1769178643895,-151.0,0.00016334,2]
[403119969,1769178643904,-151.0,0.00016334,2]
[403119971,1769178643914,-151.0,0.00016334,2]
[403119973,1769178643924,-151.0,0.00016334,2]
[403119975,1769178643933,-151.0,0.00016334,2]
[403119977,1769178643943,-151.0,0.00016334,2]
[403119979,1769178643953,-151.0,0.00016334,2]
[403119981,1769178643963,-151.0,0.00016334,2]
[403119983,1769178643975,-151.0,0.00016334,2]
[403119985,1769178643986,-277.16,0.00016343,2]
[403119987,1769178643995,-150.0,0.00016376,2]
[403119989,1769178644005,-277.16,0.00016385,2]
[403119991,1769178644014,-277.16,0.00016427,2]
[403119993,1769178644023,-246.37354958,0.00016438,2]
[403119995,1769178644033,-500.0,0.00016438,2]
[403119997,1769178644042,-277.16,0.0001647,2]
[403119999,1769178644051,-500.0,0.0001649,2]
[403120001,1769178644061,-1000.0,0.000165,2]
[403120003,1769178644070,-277.16,0.00016512,2]
[403120005,1769178644081,-2338.37148358,0.00016513,2]
[403120007,1769178644090,-171.48883397,0.00016546,2]
[403120009,1769178644099,-1101.0,0.00016554,2]
[403120011,1769178644108,-277.16,0.00016554,2]
[403120013,1769178644117,-200.0,0.00016564,2]
[403120015,1769178644126,-277.16,0.00016597,2]
[403120017,1769178644135,-333.0,0.00016612,2]
[403120019,1769178644145,-277.16,0.00016639,2]
[403120021,1769178644155,-333.0,0.00016642,2]
[403120023,1769178644165,-166.66,0.00016649,2]
[403120025,1769178644174,-277.16,0.00016681,2]
[403120027,1769178644184,-399.42993089,0.00016691,2]
[403120028,1769178644193,-277.16,0.00016724,2]
[403120030,1769178644203,-478.28782133,0.0001674,2]
[403120032,1769178644213,-500.0,0.00016764,2]
[403120034,1769178644224,-277.16,0.00016766,2]
[403120037,1769178644234,-277.16,0.00016808,2]
[403120038,1769178644243,-166.66,0.00016832,2]
[403120040,1769178644253,-277.16,0.00016851,2]
[403120042,1769178644262,-168.0,0.00016878,2]
[403120044,1769178644272,-277.16,0.00016893,2]
[403120046,1769178644281,-1000.0,0.000169,2]
[403120048,1769178644291,-162.24,0.00016941,2]
[403120050,1769178644300,-166.66,0.00016972,2]
[403120052,1769178644309,-2338.37148358,0.00016975,2]
[403120054,1769178644318,-171.48883397,0.00016998,2]
[403120056,1769178644329,-500.0,0.00017038,2]
[403120058,1769178644338,-161.10000069,0.00017121,2]
[403120060,1769178644348,-168.0,0.00017144,2]
[403120062,1769178644359,-2441.0,0.00017188,2]
[403120064,1769178644369,-615.0,0.00017188,2]
[403120066,1769178644379,-1418.39,0.00017188,2]
[403120068,1769178644388,-168.0,0.00017226,2]
[403120070,1769178644398,-168.0,0.00017248,2]
[403120072,1769178644407,-151.0,0.0001726,2]
[403120074,1769178644417,-151.0,0.0001726,2]
[403120076,1769178644427,-151.0,0.0001726,2]
[403120078,1769178644436,-5663.0,0.00017297,2]
[403120080,1769178644445,-188.0,0.000173,5]
[403120082,1769178644455,-1000.0,0.000173,2]
[403120084,1769178644464,-500.0,0.00017312,2]
[403120086,1769178644476,-478.28782133,0.0001732,2]
[403120088,1769178644485,-836.0,0.0001736,2]
[403120090,1769178644495,-5663.0,0.00017361,2]
[403120092,1769178644504,-166.26,0.00017397,2]
[403120094,1769178644513,-178.46,0.00017433,2]
[403120096,1769178644523,-2338.37148358,0.00017438,2]
[403120098,1769178644532,-5663.0,0.00017439,2]
[403120100,1769178644542,-171.48883397,0.00017449,2]
[403120102,1769178644551,-168.0,0.00017466,2]
[403120104,1769178644561,-339.0,0.000175,2]
[403120106,1769178644570,-510.53953521,0.00017534,7]
[403120108,1769178644579,-1001.0,0.00017579,2]
[403120110,1769178644590,-503.78668751,0.00017585,2]
[403120112,1769178644599,-916.0,0.00017604,2]
[403120114,1769178644608,-150.0,0.00017604,2]
[403120116,1769178644617,-1852.42,0.00017639,2]
[403120118,1769178644627,-156.65,0.00017639,2]
[403120120,1769178644637,-208.03774045,0.0001764,2]
[403120122,1769178644646,-150.0,0.00017699,2]
[403120123,1769178644656,-150.0,0.00017699,2]
[403120125,1769178644666,-150.0,0.00017699,2]
[403120127,1769178644675,-150.0,0.00017699,2]
[403120129,1769178644685,-150.0,0.00017699,2]
[403120132,1769178644696,-150.0,0.00017699,2]
[403120133,1769178644706,-150.0,0.00017699,2]
[403120135,1769178644718,-150.0,0.00017699,2]
[403120137,1769178644728,-500.0,0.00017699,2]
[403120139,1769178644738,-204.03831826,0.00017699,2]
[403120141,1769178644747,-150.0,0.00017699,2]
[403120143,1769178644756,-150.0,0.00017699,2]
[403120145,1769178644769,-500.0,0.00017699,2]
[403120147,1769178644779,-166.66,0.00017709,2]
[403120149,1769178644788,-162.24,0.00017748,2]
[403120151,1769178644797,-150.0,0.00017754,2]
[403120153,1769178644807,-150.0,0.00017754,2]
[403120155,1769178644817,-150.0,0.00017754,2]
[403120157,1769178644826,-150.0,0.00017754,2]
[403120159,1769178644836,-150.0,0.00017754,2]
[403120161,1769178644845,-500.0,0.00017754,2]
[403120163,1769178644854,-241.28872877,0.00017754,2]
[403120165,1769178644864,-150.0,0.00017754,2]
[403120167,1769178644873,-1001.0,0.00017765,2]
[403120169,1769178644882,-54059.4487116,0.00017792,2]
[403120171,1769178644892,-190.63,0.000178,9]
[403120173,1769178644901,-251.68439885,0.00017809,2]
[403120175,1769178644911,-150.0,0.00017809,2]
[403120177,1769178644921,-204.38071297,0.00017809,2]
[403120179,1769178644930,-150.0,0.00017809,2]
[403120181,1769178644939,-200.0,0.00017809,2]
[403120183,1769178644948,-500.0,0.00017809,2]
[403120185,1769178644958,-150.0,0.00017809,2]
[403120187,1769178644969,-388.09979,0.0001782,2]
[403120190,1769178644979,-388.0998,0.0001782,2]
[403120192,1769178644989,-151.0,0.00017842,2]
[403120193,1769178644999,-192.33986888,0.00017863,2]
[403120195,1769178645008,-150.0,0.00017863,2]
[403120197,1769178645017,-500.0,0.00017863,2]
[403120199,1769178645027,-150.0,0.00017863,2]
[403120201,1769178645036,-500.0,0.00017873,2]
[403120203,1769178645046,-151.0,0.00017873,2]
[403120205,1769178645056,-2035.37397134,0.000179,3]
[403120207,1769178645066,-902.98768989,0.000179,2]
[403120209,1769178645075,-2146.70732813,0.000179,2]
[403120211,1769178645085,-1000.0,0.000179,2]
[403120213,1769178645094,-478.28782133,0.000179,2]
[403120216,1769178645106,-862.39790705,0.000179,2]
[403120218,1769178645116,-171.48883397,0.000179,2]
[403120220,1769178645125,-2338.37148358,0.000179,2]
[403120222,1769178645135,-151.0,0.00017905,2]
[403120224,1769178645144,-1001.0,0.00017913,2]
[403120225,1769178645153,-150.0,0.00017918,2]
[403120228,1769178645162,-231.66985476,0.00017918,2]
[403120230,1769178645172,-150.0,0.00017918,2]
[403120232,1769178645181,-172.1623687,0.00017928,3]
[403120234,1769178645191,-1001.0,0.00017928,2]
[403120236,1769178645201,-151.0,0.00017937,2]
[403120238,1769178645210,-151.0,0.00017968,2]
[403120240,1769178645220,-250.0,0.00017973,2]
[403120242,1769178645230,-193.96453477,0.00017973,2]
[403120244,1769178645240,-10000.0,0.0001799,3]
[403120245,1769178645249,-235.98071689,0.0001799,2]
[403120248,1769178645259,-235.98071689,0.0001799,2]
[403120250,1769178645268,-235.98071689,0.0001799,2]
[403120252,1769178645278,-151.0,0.00017997,2]
[403120254,1769178645288,-150.0,0.00017999,2]
[403120256,1769178645297,-150.0,0.00017999,2]
[403120258,1769178645307,-150.0,0.00017999,2]
[403120260,1769178645317,-201.14717965,0.00017999,2]
[403120261,1769178645326,-500.0,0.00017999,2]
[403120264,1769178645335,-500.0,0.00017999,2]
[403120266,1769178645345,-500.0,0.00017999,2]
[403120268,1769178645354,-185.71117601,0.00017999,2]
[403120269,1769178645363,-505.73656178,0.00017999,2]
[403120271,1769178645372,-300.0,0.00017999,2]
[403120273,1769178645382,-500.0,0.00017999,2]
[403120275,1769178645391,-1023.0,0.00018,2]
[403120277,1769178645400,-150.0,0.00018,2]
[403120279,1769178645410,-636052.61817784,0.00018,2]
[403120327,1769178645863,-150.0,0.00017699,2]
[403120330,1769178645872,-500.0,0.00017754,2]
[403120333,1769178645881,-327.34903999,0.00017809,2]
[403120359,1769178646239,-39943.82605264,0.00018,2]
[403120363,1769178646302,-500.0,0.00017699,2]
[403120365,1769178646312,-2998.88863397,0.00018,2]
[403120385,1769178646494,-500.0,0.00017699,2]
[403120387,1769178646504,-150.0,0.00017754,2]
[403120389,1769178646513,-500.0,0.00017754,2]
[403120391,1769178646523,-150.0,0.00017809,2]
[403120393,1769178646532,-500.0,0.00017809,2]
[403120395,1769178646541,-150.0,0.00017863,2]
[403120397,1769178646550,-1998050.0,0.00018,2]
[403120404,1769178646605,-500.0,0.00017754,2]
[403120406,1769178646614,-500.0,0.00017863,2]
[403120408,1769178646624,-150.0,0.00017918,2]
[403120410,1769178646633,-270527.81204671,0.00018,2]
[403120480,1769178647285,-2367.14,0.00017188,2]
[403120482,1769178647295,-150.0,0.00017699,2]
[403120484,1769178647304,-500.0,0.00017809,2]
[403120486,1769178647314,-500.0,0.00017863,2]
[403120488,1769178647324,-420.82470435,0.00017918,2]
[403120490,1769178647334,-500.0,0.00017918,2]
[403120493,1769178647343,-224.27837996,0.00017973,2]
[403120495,1769178647353,-500.0,0.00017973,2]
[403120497,1769178647362,-43807.72141599,0.00018,2]
[403120499,1769178647374,-439.165,0.00018,2]
[403120804,1769178684343,340.91553321,0.00013938,2]
[403120805,1769178685161,500.0,0.00013838,2]
[403120806,1769178685683,500.0,0.00013838,2]
[403120807,1769178685780,500.0,0.00013838,2]
[403120808,1769178685894,500.0,0.00013838,2]
[403120809,1769178686020,221.35973597,0.00013838,2]
[403120810,1769178686130,500.0,0.00013838,2]
[403120811,1769178686241,500.0,0.00013838,2]
[403120812,1769178686341,500.0,0.00013838,2]
[403120813,1769178686458,500.0,0.00013838,2]
[403120814,1769178686575,500.0,0.00013838,2]
[403120818,1769178711248,500.0,0.00013838,2]
[403120822,1769178748402,9500.01,0.00013739,2]
[403120823,1769178748475,10000.01,0.00013739,2]
[403120824,1769178748550,10000.01,0.00013739,2]
[403120826,1769178748617,10000.01,0.00013739,2]
[403120828,1769178748682,10000.01,0.00013739,2]
[403120830,1769178748752,10000.01,0.00013739,2]
[403120832,1769178748819,10000.01,0.00013739,2]
[403120834,1769178748884,10000.01,0.00013739,2]
[403120836,1769178748958,10000.01,0.00013739,2]
[403120838,1769178749032,10000.01,0.00013739,2]
[403120840,1769178749066,5308.32469508,0.00013739,2]
[403120841,1769178749096,5308.32469508,0.00013739,2]
[403120842,1769178749123,5308.32469508,0.00013739,2]
[403120843,1769178749149,5308.32469508,0.00013739,2]
[403120844,1769178749176,5308.32469508,0.00013739,2]
[403120845,1769178749203,5308.32469508,0.00013739,2]
[403120846,1769178749230,5308.32469508,0.00013739,2]
[403120847,1769178749257,5308.32469508,0.00013739,2]
[403120848,1769178749284,5308.32469508,0.00013739,2]
[403120849,1769178749315,5308.32469508,0.00013739,2]
[403120850,1769178763895,209.90708468,0.00013738,2]